bitfinex-derivatives/quotes_ETHF0:USTF0_20241129
["timestamp","ask_amount","ask_price","bid_price","bid_amount"]
[1732863236577,3.2078,3564.0,3563.4,40.8]
[1732863236784,3.48834,3564.0,3563.4,40.8]
[1732863237184,3.2078,3563.6,3563.4,40.8]
[1732863237377,0.4242,3563.5,3563.0,0.28061]
[1732863237579,0.4242,3563.5,3563.1,0.28061]
[1732863237786,0.4242,3563.5,3563.2,40.8]
[1732863239484,3.2306,3563.5,3563.2,40.8]
[1732863239685,3.2306,3563.5,3563.2,41.0806]
[1732863239884,3.2306,3563.5,3563.2,40.8]
[1732863240081,0.4242,3563.5,3563.2,40.8]
[1732863241579,0.70478,3563.5,3563.2,40.8]
[1732863241782,0.4242,3563.5,3563.2,40.8]
[1732863242893,0.4242,3563.5,3563.2,41.0806]
[1732863243088,0.4242,3563.5,3563.2,40.8]
[1732863244081,0.28058,3563.4,3563.2,40.8]
[1732863244584,2.8064,3563.4,3563.2,40.8]
[1732863244782,3.08699,3563.4,3563.2,40.8]
[1732863245186,0.28059,3563.4,3563.2,40.8]
[1732863245389,3.64504128,3563.3,3563.2,40.8]
[1732863245591,3.67586123,3563.3,3563.2,40.8]
[1732863245788,6.48219208,3563.3,3563.2,40.8]
[1732863246386,6.48208539,3563.3,3563.2,40.8]
[1732863246785,6.48228975,3563.3,3563.2,40.8]
[1732863247090,6.48249974,3563.3,3563.2,40.8]
[1732863247585,6.48289778,3563.3,3563.2,40.8]
[1732863247787,3.50810033,3563.3,3563.2,40.8]
[1732863247991,3.22751033,3563.3,3563.2,40.8]
[1732863248787,0.42111033,3563.3,3563.2,41.0806]
[1732863248985,3.25590226,3563.3,3563.2,41.0806]
[1732863249186,3.67701259,3563.3,3563.2,40.8]
[1732863249382,3.67693553,3563.3,3563.2,41.0806]
[1732863249687,3.67693553,3563.3,3563.2,40.8]
[1732863249688,3.67758039,3563.3,3563.2,40.8]
[1732863249887,3.25647006,3563.3,3563.2,40.8]
[1732863250197,5.40785778,3563.4,3563.2,41.2305]
[1732863250382,5.40785778,3563.4,3563.2,41.5111]
[1732863250694,3.25647006,3563.4,3563.3,0.28059]
[1732863250991,3.25647006,3563.5,3563.3,0.28059]
[1732863251196,3.25647006,3563.6,3563.5,0.28058]
[1732863251486,3.25647006,3563.6,3563.2,0.4305]
[1732863251487,3.25647006,3563.7,3563.3,0.137]
[1732863251686,3.25647006,3563.8,3563.7,0.28056]
[1732863252089,3.67747034,3563.8,3563.7,0.28056]
[1732863252288,3.67747034,3563.8,3563.6,0.28056]
[1732863252489,3.25647006,3563.8,3563.6,0.28056]
[1732863252793,3.25647006,3563.8,3563.5,40.8]
[1732863252991,3.6774899,3563.7,3563.5,40.8]
[1732863253289,3.6774899,3563.6,3563.5,40.8]
[1732863253489,0.42101984,3563.7,3563.5,40.8]
[1732863253683,0.42101984,3563.6,3563.5,40.8]
[1732863254084,0.42101984,3563.7,3563.5,40.8]
[1732863254289,0.42101984,3563.7,3563.6,0.28057]
[1732863254698,0.42103165,3563.7,3563.6,0.28057]
[1732863254998,0.42103165,3563.7,3563.6,3.08697]
[1732863255192,3.26024383,3563.7,3563.6,3.08697]
[1732863256090,3.26024383,3563.7,3563.6,0.28057]
[1732863256392,4.74630295,3563.9,3563.6,0.28057]
[1732863256589,0.42103165,3563.8,3563.6,0.28056]
[1732863256893,4.3252713,3563.9,3563.6,0.28056]
[1732863256894,3.68232372,3563.7,3563.6,0.28056]
[1732863257092,3.26129207,3563.7,3563.6,0.28056]
[1732863257903,3.26129207,3563.7,3563.6,0.28057]
[1732863258290,4.74627133,3564.0,3563.6,2.8064]
[1732863258291,3.26129207,3563.8,3563.6,2.8064]
[1732863258599,3.2621692,3563.7,3563.6,0.28057]
[1732863258987,3.2621692,3563.8,3563.7,0.28056]
[1732863259189,3.2621692,3563.9,3563.8,0.28055]
[1732863259390,3.2621692,3564.0,3563.9,0.28054]
[1732863260794,3.2621692,3564.0,3563.9,3.08614]
[1732863261294,3.2621692,3564.1,3564.0,0.28054]
[1732863261596,4.3252713,3564.3,3564.1,0.28053]
[1732863261899,4.3252713,3564.3,3564.2,40.8]
[1732863262494,4.34844356,3564.3,3564.0,0.71073]
[1732863262896,4.76942203,3564.3,3564.0,0.71073]
[1732863263100,0.42097847,3564.2,3564.0,0.71073]
[1732863263401,0.42097847,3564.1,3564.0,0.71073]
[1732863263597,4.34844356,3564.3,3564.0,0.71073]
[1732863264599,4.34844356,3564.3,3564.0,0.4302]
[1732863264801,4.76942469,3564.3,3564.0,0.4302]
[1732863265096,0.42098113,3564.2,3564.0,0.4302]
[1732863265295,0.42098113,3564.1,3564.0,0.4302]
[1732863265695,0.42098113,3564.1,3564.0,0.71073]
[1732863266195,3.62878113,3564.1,3564.0,0.4302]
[1732863266589,3.62878113,3564.1,3563.5,3.2078]
[1732863266590,10.78282469,3564.1,3563.5,3.2078]
[1732863266797,10.78282469,3564.1,3563.6,0.28056]
[1732863266798,3.26154394,3563.8,3563.6,0.28056]
[1732863267000,3.26154394,3563.8,3563.7,40.8]
[1732863267400,3.26154394,3563.8,3563.7,41.08056]
[1732863267703,3.26154394,3563.9,3563.7,41.08056]
[1732863268098,3.26154394,3563.8,3563.7,41.08056]
[1732863268798,3.26154394,3563.8,3563.6,0.28057]
[1732863270591,3.26154394,3563.8,3563.5,3.48837]
[1732863271201,3.26154394,3563.6,3563.2,0.4485]
[1732863271398,3.2610357,3563.5,3563.2,0.72909]
[1732863272304,3.2610357,3563.5,3563.2,0.4485]
[1732863272501,3.68207661,3563.5,3563.2,0.4485]
[1732863272706,3.2610357,3563.5,3563.2,0.4485]
[1732863273003,6.4688357,3563.3,3563.2,0.4485]
[1732863273206,6.88989045,3563.3,3563.2,0.4485]
[1732863273401,4.31535475,3563.3,3562.6,0.28064]
[1732863273704,3.2603166,3563.1,3562.7,0.28064]
[1732863273906,3.68137135,3563.1,3562.7,0.28064]
[1732863274106,3.2603166,3563.1,3562.7,0.28064]
[1732863274397,3.2603166,3563.1,3562.5,0.4053]
[1732863274398,3.2078,3562.8,3562.5,0.4053]
[1732863274900,6.4681166,3562.8,3562.5,0.4053]
[1732863275503,3.2078,3562.8,3562.5,0.4053]
[1732863275900,3.5409666,3562.7,3562.1,0.0132]
[1732863276099,0.4383,3562.6,3562.1,0.0132]
[1732863276305,4.1197961,3562.6,3562.1,0.0132]
[1732863276504,3.9792666,3562.6,3562.5,40.8]
[1732863276707,6.09872041,3562.6,3562.5,40.8]
[1732863276899,5.81807041,3562.6,3562.1,0.0132]
[1732863277107,6.46588051,3562.3,3562.1,0.0132]
[1732863277403,3.48847,3562.3,3562.1,0.0132]
[1732863277797,6.74655051,3562.3,3562.2,40.8]
[1732863278004,7.60596251,3562.3,3562.2,40.8]
[1732863278202,9.99195051,3562.3,3562.2,40.8]
[1732863278401,6.73387,3562.3,3562.2,40.8]
[1732863279204,10.41317819,3562.3,3562.2,40.8]
[1732863279511,11.49921401,3562.3,3562.2,40.8]
[1732863279706,7.15510666,3562.3,3562.2,40.8]
[1732863281509,10.40607145,3562.3,3562.2,40.8]
[1732863282711,12.55748188,3562.3,3562.2,40.8]
[1732863283405,12.13622251,3562.3,3562.2,40.8]
[1732863283917,8.60458772,3562.3,3562.2,40.8]
[1732863284207,8.88525772,3562.3,3562.2,40.8]
[1732863284716,8.18051745,3562.3,3562.2,40.8]
[1732863284912,3.2078,3562.3,3562.2,41.08068]
[1732863285106,3.6461,3562.6,3562.4,0.28066]
[1732863285412,0.4383,3562.6,3562.5,0.70395]
[1732863285605,2.16551745,3562.9,3562.5,0.70395]
[1732863286009,2.16551745,3562.9,3562.6,40.8]
[1732863287803,7.52470517,3563.0,3562.6,40.8]
[1732863288006,2.16551745,3562.9,3562.6,40.8]
[1732863288717,4.97271745,3562.9,3562.6,40.8]
[1732863289005,2.15138772,3562.7,3562.3,0.00852954]
[1732863289206,3.2078,3562.4,3562.3,0.00852954]
[1732863289403,5.37289427,3562.4,3562.3,0.00852954]
[1732863289609,5.82159427,3562.4,3562.3,0.00852954]
[1732863289908,3.93716,3562.4,3562.3,0.00852954]
[1732863290103,5.82159427,3562.4,3562.3,0.00852954]
[1732863290310,6.10225427,3562.4,3562.3,0.00852954]
[1732863290807,5.82159427,3562.4,3562.3,0.00852954]
[1732863291008,3.6565,3562.4,3562.3,0.00852954]
[1732863292206,3.6565,3562.4,3562.3,40.80852954]
[1732863293806,3.2078,3562.4,3562.3,40.80852954]
[1732863294012,2.15138772,3563.1,3562.3,40.80852954]
[1732863294013,3.2078,3562.8,3562.4,0.28066]
[1732863294414,3.2078,3562.8,3562.5,0.28065]
[1732863294815,3.2078,3562.8,3562.4,0.4195]
[1732863295017,3.2078,3562.8,3562.4,0.70016]
[1732863295720,3.2078,3562.8,3562.5,0.28065]
[1732863296315,3.2078,3562.8,3562.4,0.70016]
[1732863296817,3.2078,3562.8,3562.4,0.4195]
[1732863297116,3.2078,3562.8,3562.7,0.28064]
[1732863297721,3.2078,3563.2,3562.7,0.28064]
[1732863298018,3.2078,3563.2,3563.1,0.28061]
[1732863298411,3.2078,3563.2,3563.1,41.08061]
[1732863299024,5.37289427,3563.6,3563.1,40.8]
[1732863300026,3.2078,3563.2,3563.1,40.8]
[1732863304522,3.2078,3563.2,3563.1,43.88701]
[1732863304725,3.65937303,3563.8,3563.4,0.28058]
[1732863304726,5.78459427,3563.8,3563.4,0.28058]
[1732863305028,3.6195,3563.8,3563.5,0.28057]
[1732863305219,3.6195,3563.8,3563.4,0.28058]
[1732863305220,0.4117,3563.8,3563.4,0.28058]
[1732863305422,2.16509427,3564.0,3563.6,40.8]
[1732863305619,3.24767303,3564.2,3563.6,41.08057]
[1732863305620,2.16509427,3564.1,3563.6,41.08057]
[1732863306325,2.58149427,3564.2,3563.6,41.08057]
[1732863306520,2.16509427,3564.1,3563.6,41.08057]
[1732863306935,2.44562427,3564.1,3563.6,40.8]
[1732863307225,2.16509427,3564.1,3563.6,40.8]
[1732863308127,2.44562427,3564.1,3563.6,40.8]
[1732863308434,2.16509427,3564.1,3563.6,40.8]
[1732863309229,2.16509427,3564.1,3563.6,41.08057]
[1732863310431,2.44562427,3564.1,3563.6,40.8]
[1732863310724,2.16509427,3564.1,3563.6,40.8]
[1732863310921,2.16509427,3564.1,3563.6,41.08057]
[1732863311123,2.44562427,3564.1,3563.6,40.8]
[1732863311423,2.16509427,3564.1,3563.6,40.8]
[1732863311827,2.44562427,3564.1,3563.6,40.8]
[1732863312029,2.16509427,3564.1,3563.6,40.8]
[1732863312926,5.35918772,3563.9,3563.6,40.8]
[1732863313228,5.35918772,3563.9,3562.9,0.28062]
[1732863313431,2.15138772,3563.4,3562.7,0.4405]
[1732863313630,0.4389,3563.3,3563.0,40.8]
[1732863313832,0.71949,3563.3,3563.0,40.8]
[1732863314433,0.4389,3563.3,3563.0,40.8]
[1732863314736,0.71949,3563.3,3563.0,40.8]
[1732863315230,0.4389,3563.3,3563.0,40.8]
[1732863315429,0.71949,3563.3,3563.0,40.8]
[1732863315632,0.2806,3563.2,3563.0,40.8]
[1732863315831,0.28061,3563.1,3563.0,40.8]
[1732863316635,0.4389,3563.3,3563.0,40.8]
[1732863316933,0.2806,3563.2,3563.0,40.8]
[1732863317131,0.4389,3563.3,3563.0,40.8]
[1732863317331,0.7195,3563.3,3563.0,40.8]
[1732863317726,0.4389,3563.3,3563.0,40.8]
[1732863318128,0.7195,3563.3,3563.0,40.8]
[1732863319332,0.4389,3563.3,3563.0,40.8]
[1732863319927,3.68093181,3563.2,3563.0,40.8]
[1732863320334,3.25981972,3563.2,3563.0,40.8]
[1732863320828,2.17315265,3563.1,3563.0,40.8]
[1732863322832,3.69871972,3563.3,3563.0,40.8]
[1732863322833,2.17315265,3563.2,3563.0,41.08062]
[1732863323028,2.17315265,3563.2,3563.0,40.8]
[1732863323235,2.17315265,3563.3,3563.1,0.28061]
[1732863323427,2.17315265,3563.4,3563.3,0.28059]
[1732863323634,2.17315265,3563.5,3563.2,6.6412]
[1732863323931,2.17315265,3563.5,3563.4,0.28058]
[1732863324130,2.15138772,3563.8,3563.3,2.8064]
[1732863324131,2.17315265,3563.6,3563.3,2.8064]
[1732863324334,2.17315265,3563.6,3563.4,0.28058]
[1732863324534,2.17315265,3563.6,3563.5,41.4216]
[1732863324733,2.17315265,3563.6,3563.5,41.70218]
[1732863325137,2.17315265,3563.6,3563.5,41.4216]
[1732863326739,2.17315265,3563.6,3563.5,41.70218]
[1732863326940,2.17315265,3563.8,3563.5,41.4216]
[1732863327139,2.17315265,3563.8,3563.7,0.28056]
[1732863327345,3.25981972,3564.0,3563.8,0.28055]
[1732863327346,2.17315265,3563.9,3563.8,0.28055]
[1732863327537,2.17355183,3563.9,3563.8,0.28055]
[1732863327732,2.17355183,3564.0,3563.8,2.8056]
[1732863327937,2.17355183,3564.1,3564.0,0.28054]
[1732863328137,2.17355183,3564.1,3563.9,0.28054]
[1732863328443,2.17355183,3564.2,3564.0,0.28054]
[1732863328648,2.17355183,3564.2,3563.6,3.3441]
[1732863328844,2.17355183,3564.2,3563.9,0.28054]
[1732863329237,2.17355183,3564.2,3564.0,0.91754]
[1732863329935,2.17355183,3564.2,3564.1,2.8056]
[1732863330240,2.17355183,3564.3,3564.1,2.8056]
[1732863330537,2.17355183,3564.2,3564.0,0.637]
[1732863331240,3.25981972,3564.4,3564.0,0.637]
[1732863331241,2.17355183,3564.3,3564.0,0.637]
[1732863333137,2.17355183,3564.3,3564.1,3.2078]
[1732863333344,2.17355183,3564.3,3564.2,0.28052]
[1732863333543,5.43337155,3564.7,3564.5,0.2805]
[1732863333841,2.17355183,3564.8,3564.6,41.4279]
[1732863334042,2.17355183,3564.8,3564.6,41.70839]
[1732863334239,2.17355183,3564.8,3564.6,41.4279]
[1732863334435,2.17355183,3564.7,3564.6,40.8]
[1732863334636,2.45403183,3564.7,3564.6,40.8]
[1732863334946,3.54029972,3564.7,3564.6,40.8]
[1732863335140,3.9612495,3564.7,3564.6,40.8]
[1732863335441,3.9612495,3564.7,3564.1,3.8357]
[1732863335442,3.54029972,3564.7,3564.1,3.8357]
[1732863335641,2.17136326,3564.5,3564.1,3.8357]
[1732863336049,2.17136326,3564.5,3564.2,40.8]
[1732863336541,2.17136326,3564.4,3564.2,40.8]
[1732863336738,0.70150572,3564.3,3564.2,40.8]
[1732863337136,7.85353201,3564.3,3564.2,40.8]
[1732863337341,7.85353201,3564.3,3563.6,0.28057]
[1732863337342,0.28053,3564.1,3563.6,0.28057]
[1732863337545,2.17168611,3564.0,3563.6,0.28056]
[1732863337848,2.17168611,3564.0,3563.5,0.6237]
[1732863337849,2.75738611,3564.0,3563.8,0.28055]
[1732863338049,2.75738611,3564.0,3563.7,0.28056]
[1732863338347,2.75738611,3564.0,3563.9,40.8]
[1732863338546,0.5857,3564.0,3563.9,40.8]
[1732863339545,3.84322916,3564.0,3563.9,40.8]
[1732863341251,7.35039462,3564.0,3563.9,40.8]
[1732863341543,4.09286546,3564.0,3563.9,40.8]
[1732863345745,8.43929175,3564.0,3563.9,40.8]
[1732863346148,4.09286546,3564.0,3563.9,40.8]
[1732863346348,8.38853535,3564.0,3563.9,40.8]
[1732863346746,8.38839751,3564.0,3563.9,40.8]
[1732863347948,0.28057,3563.6,3563.3,0.28059]
[1732863348255,3.2618864,3563.4,3563.2,0.28059]
[1732863348455,3.68296994,3563.4,3563.2,0.28059]
[1732863348751,3.68296994,3563.4,3562.9,0.6147]
[1732863348752,3.2618864,3563.4,3562.9,0.6147]
[1732863348954,3.68298513,3563.4,3563.3,40.8]
[1732863349148,3.5424664,3563.4,3563.3,40.8]
[1732863349650,0.70167594,3563.4,3563.3,40.8]
[1732863349847,3.54278213,3563.4,3563.3,40.8]
[1732863350350,3.96387807,3563.4,3563.3,40.8]
[1732863350659,4.57797807,3563.4,3563.3,40.8]
[1732863350950,4.5780645,3563.4,3563.3,40.8]
[1732863351452,1.31577594,3563.4,3563.3,40.8]
[1732863352346,4.5779604,3563.4,3563.3,40.8]
[1732863352544,4.57799019,3563.4,3563.3,40.8]
[1732863353949,1.31577594,3563.4,3563.3,40.8]
[1732863354149,4.57807516,3563.4,3563.3,40.8]
[1732863355352,1.31577594,3563.4,3563.3,40.8]
[1732863357352,1.03519594,3563.4,3563.3,40.8]
[1732863357653,3.68348383,3563.4,3563.3,40.8]
[1732863357851,3.26238789,3563.4,3563.3,40.8]
[1732863358154,3.26238789,3563.5,3563.3,40.8]
[1732863358751,3.26238789,3563.4,3563.3,40.8]
[1732863359153,3.26238789,3563.5,3563.3,40.8]
[1732863359857,3.68345756,3563.5,3563.3,40.8]
[1732863360355,2.1751648,3563.5,3563.4,6.0142]
[1732863360545,2.1751648,3563.6,3563.4,3.48838]
[1732863360749,2.1751648,3563.6,3563.5,0.7315]
[1732863360953,3.26238789,3563.7,3563.5,41.5315]
[1732863361149,3.54295789,3563.6,3563.5,41.5315]
[1732863361549,3.96402217,3563.6,3563.5,41.5315]
[1732863362257,0.70163428,3563.6,3563.5,41.5315]
[1732863362447,3.26540867,3563.6,3563.5,41.5315]
[1732863362651,0.70163428,3563.6,3563.5,41.5315]
[1732863363351,0.42106428,3563.6,3563.5,41.5315]
[1732863363557,0.28057,3563.6,3563.5,41.5315]
[1732863363855,0.70163428,3563.6,3563.5,41.5315]
[1732863364554,0.42106428,3563.6,3563.5,41.5315]
[1732863364746,0.70163428,3563.6,3563.5,41.5315]
[1732863364951,0.70163428,3563.6,3563.5,40.8]
[1732863364952,4.77024614,3563.6,3563.5,40.8]
[1732863365146,0.42106428,3563.6,3563.5,40.8]
[1732863366359,0.42106006,3563.6,3563.5,40.8]
[1732863366953,0.70163006,3563.6,3563.5,40.8]
[1732863367355,5.05081192,3563.6,3563.5,40.8]
[1732863368354,4.77024192,3563.6,3563.5,40.8]
[1732863369259,4.62975186,3563.6,3563.5,40.8]
[1732863369559,5.05081192,3563.6,3563.5,40.8]
[1732863369859,4.77024192,3563.6,3563.5,40.8]
[1732863371355,4.77024579,3563.6,3563.5,40.8]
[1732863372770,8.64427733,3563.9,3563.5,40.8]
[1732863372771,3.2644805,3563.7,3563.5,43.6064]
[1732863372967,3.2644805,3563.8,3563.6,1.01607]
[1732863373164,3.2644805,3563.8,3563.7,0.7512]
[1732863373661,3.2644805,3563.8,3563.7,3.5576]
[1732863374064,3.2644805,3563.9,3563.7,3.5576]
[1732863374362,3.2644805,3563.8,3563.7,0.7512]
[1732863374760,3.2644805,3563.8,3563.7,3.5576]
[1732863375059,3.68548869,3563.8,3563.7,3.5576]
[1732863375261,3.2644805,3563.8,3563.7,3.5576]
[1732863375957,3.2644805,3563.8,3563.7,0.7512]
[1732863375958,3.68548869,3563.8,3563.7,0.7512]
[1732863376160,4.34918186,3564.0,3563.7,0.7512]
[1732863376161,4.62973186,3563.9,3563.7,0.7512]
[1732863376360,0.42100819,3563.8,3563.5,40.8]
[1732863376561,3.26503922,3563.6,3563.5,40.8]
[1732863377062,0.42100819,3563.6,3563.5,40.8]
[1732863377456,0.70157819,3563.6,3563.5,40.8]
[1732863377657,0.42100819,3563.6,3563.5,40.8]
[1732863378160,5.23835772,3563.6,3563.5,40.8]
[1732863378464,5.65936591,3563.6,3563.5,40.8]
[1732863379366,9.92508488,3563.6,3563.5,40.8]
[1732863379867,15.36156221,3563.6,3563.5,40.8]
[1732863380058,0.42100819,3563.6,3563.5,43.88698]
[1732863380563,3.68815011,3563.6,3563.5,45.37978]
[1732863381064,3.26714192,3563.6,3563.5,45.37978]
[1732863381265,0.42102485,3563.6,3563.5,45.37978]
[1732863381459,3.26796348,3563.6,3563.5,42.2928]
[1732863381659,0.42102485,3563.6,3563.5,42.2928]
[1732863382261,0.42102485,3563.6,3563.5,40.8]
[1732863382467,5.1080142,3563.6,3563.5,40.8]
[1732863382768,1.17502485,3563.6,3563.5,40.8]
[1732863383158,0.754,3563.6,3563.5,40.8]
[1732863383362,1.17502485,3563.6,3563.5,40.8]
[1732863384165,5.11268513,3563.6,3563.5,40.8]
[1732863384357,1.17502485,3563.6,3563.5,40.8]
[1732863385470,1.45559485,3563.6,3563.5,40.8]
[1732863385664,1.17502485,3563.6,3563.5,40.8]
[1732863387167,4.78009387,3563.6,3563.5,41.08058]
[1732863387367,4.78009387,3563.6,3563.5,40.8]
[1732863387562,4.35906902,3563.6,3563.5,40.8]
[1732863387967,4.78009387,3563.6,3563.5,40.8]
[1732863388271,4.35906902,3563.6,3563.5,40.8]
[1732863388667,4.35906902,3563.6,3563.5,43.88698]
[1732863388868,0.42102485,3563.6,3563.5,45.39278]
[1732863389063,4.35906902,3563.7,3563.5,45.1122]
[1732863389271,4.35906902,3563.7,3563.6,0.28057]
[1732863389765,0.42102485,3563.7,3563.6,6.29477]
[1732863389964,3.26950689,3563.7,3563.6,6.29477]
[1732863390167,3.26950689,3563.8,3563.7,0.28056]
[1732863390469,3.26950689,3563.8,3563.7,3.87006]
[1732863390974,3.26950689,3563.9,3563.8,0.28055]
[1732863391372,3.26950689,3563.9,3563.8,43.88615]
[1732863391573,3.26950689,3563.9,3563.8,43.6056]
[1732863391873,3.26950689,3564.0,3563.9,0.28054]
[1732863392073,3.26950689,3564.0,3563.9,3.08614]
[1732863392664,3.26950689,3564.0,3563.9,43.88614]
[1732863393477,3.26950689,3564.1,3564.0,0.28054]
[1732863393768,3.26950689,3564.1,3564.0,6.29394]
[1732863393973,2.17847448,3564.1,3564.0,6.0134]
[1732863394175,2.17847448,3564.1,3564.0,3.08614]
[1732863394670,3.26950689,3564.2,3564.0,2.8056]
[1732863394876,3.26950689,3564.2,3563.9,40.8]
[1732863394877,2.17811701,3564.1,3563.9,40.8]
[1732863395177,2.17803785,3564.0,3563.9,43.88614]
[1732863395378,2.17803785,3564.1,3564.0,0.28054]
[1732863395571,2.17803785,3564.1,3563.9,41.08054]
[1732863395870,2.17803785,3564.1,3564.0,0.28054]
[1732863396375,2.17803785,3564.1,3564.0,3.08614]
[1732863396675,2.17803785,3564.1,3564.0,2.8056]
[1732863397173,2.17803785,3564.1,3564.0,3.08614]
[1732863397573,2.17803785,3564.1,3563.9,40.8]
[1732863397774,2.17803785,3564.0,3563.9,41.08054]
[1732863397977,2.17803785,3564.0,3563.9,40.8]
[1732863398278,2.17803785,3564.0,3563.9,43.88614]
[1732863400481,3.26950689,3564.2,3564.0,0.28054]
[1732863400678,2.17613671,3564.1,3564.0,0.28054]
[1732863400976,3.26950689,3564.2,3564.0,0.28054]
[1732863401478,3.26950689,3564.2,3563.9,41.08054]
[1732863401673,2.17608799,3564.0,3563.9,41.08054]
[1732863402076,2.17608799,3564.0,3563.9,43.88614]
[1732863402571,2.17608799,3564.1,3563.9,43.88614]
[1732863402778,2.17608799,3564.1,3563.9,41.08054]
[1732863403080,2.17608799,3564.0,3563.9,41.08054]
[1732863403576,2.17608799,3564.0,3563.9,43.88614]
[1732863404276,2.17608799,3564.1,3563.9,43.6056]
[1732863404478,2.17608799,3564.1,3563.9,41.08054]
[1732863404677,2.17608799,3564.0,3563.9,41.08054]
[1732863404877,2.17608799,3564.1,3563.9,41.08054]
[1732863405279,2.17608799,3564.0,3563.9,41.08054]
[1732863405573,2.17608799,3564.1,3563.9,40.8]
[1732863405977,2.17608799,3564.0,3563.9,43.6056]
[1732863406275,2.17608799,3564.0,3563.9,41.08054]
[1732863406482,2.17608799,3564.0,3563.9,43.88614]
[1732863407981,2.17608799,3564.0,3563.9,43.6056]
[1732863408176,2.17608799,3564.1,3563.9,43.88614]
[1732863408378,2.17608799,3564.1,3564.0,0.28054]
[1732863408580,2.17608799,3564.1,3563.9,43.6056]
[1732863408779,2.17608799,3564.1,3563.9,43.88614]
[1732863409179,2.17608799,3564.1,3563.9,41.08054]
[1732863410782,2.91158799,3564.1,3563.9,41.08054]
[1732863410984,2.91158799,3564.1,3564.0,0.28054]
[1732863412779,2.17608799,3564.1,3564.0,3.48834]
[1732863412985,2.17608799,3564.2,3564.1,0.28053]
[1732863413676,3.26950689,3564.4,3564.2,0.28052]
[1732863413677,2.17608799,3564.3,3564.2,0.28052]
[1732863413876,0.7621,3564.5,3564.2,0.28052]
[1732863413877,2.93818799,3564.5,3564.2,3.84512958]
[1732863414083,2.17608799,3564.8,3564.4,4.24732958]
[1732863414282,3.26950689,3564.9,3564.8,0.28047]
[1732863414283,2.17608799,3564.9,3564.8,0.28047]
[1732863414583,2.17608799,3565.0,3564.9,0.28047]
[1732863415286,2.17608799,3565.0,3564.9,4.12479958]
[1732863415491,2.93868799,3565.1,3565.0,0.28046]
[1732863415781,2.93868799,3565.1,3565.0,3.08526]
[1732863416182,0.7626,3565.1,3565.0,3.08526]
[1732863416378,0.7626,3565.1,3565.0,0.28046]
[1732863416982,0.7626,3565.1,3565.0,40.8]
[1732863417182,2.93868799,3565.1,3565.0,40.8]
[1732863417483,0.7626,3565.1,3565.0,40.8]
[1732863417886,2.93868799,3565.1,3565.0,40.8]
[1732863418784,3.97821757,3565.1,3565.0,40.8]
[1732863420382,4.25866757,3565.1,3565.0,40.8]
[1732863420586,3.97821757,3565.1,3565.0,40.8]
[1732863421586,1.80212958,3565.1,3565.0,40.8]
[1732863422388,0.7626,3565.1,3565.0,40.8]
[1732863425391,0.7626,3565.1,3565.0,41.08046]
[1732863425589,0.7626,3565.1,3565.0,41.83096]
[1732863426188,2.88608799,3565.4,3565.0,41.5505]
[1732863426497,2.88608799,3565.4,3565.1,3.2078]
[1732863426692,2.95968799,3565.5,3565.3,0.28043]
[1732863427190,0.7836,3565.5,3565.1,3.2078]
[1732863427400,0.7836,3565.5,3565.2,0.28044]
[1732863428899,0.7836,3565.5,3565.4,0.28043]
[1732863429497,0.28054,3563.9,3563.8,2.71206099]
[1732863429693,19.30608055,3563.9,3561.1,0.28053952]
[1732863429892,2.17443624,3561.8,3561.3,1.74280045]
[1732863430095,2.17443624,3561.6,3561.3,1.74280045]
[1732863430296,2.17443624,3561.7,3561.3,1.74280045]
[1732863430798,3.26165436,3561.8,3561.6,2.8056]
[1732863431003,3.26165436,3561.8,3561.7,40.8]
[1732863431296,2.17064761,3561.8,3561.7,4.54840045]
[1732863432205,5.37844761,3561.9,3561.7,45.34840045]
[1732863432399,5.37844761,3561.9,3561.8,2.8056]
[1732863432999,5.37844761,3561.9,3561.8,43.6056]
[1732863433202,3.2078,3561.9,3561.8,43.6056]
[1732863436810,3.2078,3562.3,3561.8,45.34840045]
[1732863437006,3.2078,3562.3,3562.2,2.8056]
[1732863437605,3.2078,3562.3,3562.2,43.6056]
[1732863439206,0.28071,3561.9,3561.1,0.28076]
[1732863439408,3.2078,3561.5,3561.1,0.28076]
[1732863439708,3.2078,3561.5,3561.2,40.8]
[1732863439909,3.2078,3561.5,3561.4,2.8056]
[1732863440105,3.2078,3561.5,3561.4,4.54840045]
[1732863440501,3.2078,3561.5,3561.4,45.34840045]
[1732863440816,3.2078,3561.5,3561.4,43.6056]
[1732863446015,5.36088138,3561.9,3561.4,43.6056]
[1732863446216,5.36088138,3561.9,3561.5,2.8056]
[1732863446912,3.2078,3561.9,3561.8,2.8056]
[1732863449113,3.2078,3561.9,3561.8,4.54840045]
[1732863449306,3.2078,3561.9,3561.8,4.82911045]
[1732863449718,3.2078,3561.9,3561.8,4.54840045]
[1732863451613,3.2078,3561.9,3561.8,4.82911045]
[1732863452718,3.2078,3561.9,3561.8,4.54840045]
[1732863453317,3.2078,3561.9,3561.8,4.82911045]
[1732863453513,3.2078,3561.9,3561.8,4.54840045]
[1732863453708,3.2078,3561.9,3561.8,4.82911045]
[1732863453912,5.36088138,3562.4,3561.8,4.54840045]
[1732863454121,3.2078,3562.4,3562.3,2.8056]
[1732863454311,3.2078,3562.4,3561.9,0.2807]
[1732863454514,3.2078,3562.4,3561.9,1.74280045]
[1732863454818,3.2078,3562.4,3562.3,40.8]
[1732863455118,3.48846,3562.4,3562.3,40.8]
[1732863455615,5.36088138,3562.4,3562.3,40.8]
[1732863458211,5.58078816,3562.4,3562.3,40.8]
[1732863459719,5.58078816,3562.4,3562.0,0.28069]
[1732863459918,0.21990678,3562.3,3562.0,1.74280045]
[1732863460619,0.21990678,3562.3,3561.6,0.28073]
[1732863460817,0.21990678,3562.3,3561.6,0.74]
[1732863461015,0.21990678,3562.3,3561.6,2.48280045]
[1732863461216,0.21990678,3562.3,3561.8,0.28071]